[Event "Chess Ladies Graz 2024"]
[Site "Graz"]
[Date "2024.03.03"]
[Round "9.1"]
[White "Schloffer, Jasmin-Denise"]
[Black "Daulyte-Cornette, Deimante"]
[Result "0-1"]
[ECO "D36"]
[WhiteElo "2178"]
[BlackElo "2372"]
[Annotator "TA"]
[PlyCount "72"]
[EventDate "2024.02.25"]
[EventType "tourn"]
[EventCountry "AUT"]
[SourceTitle "playchess.com"]
[Source "ChessBase"]
[SourceQuality "1"]
[TimeControl "40/5400+30:1800+30"]

{[%evp 18,72,14,18,13,0,8,0,5,0,12,-47,-38,-37,-45,-98,-97,-98,-95,-112,-72,-78,-84,-74,-53,-71,-48,-64,-65,-83,-65,-142,-127,-171,-133,-231,-233,-237,-222,-293,-69,-264,-262,-252,-259,-269,-280,-736,-720,-733,-733,-1562,-1534,-1558,-1529,-1985,-1029]} 1. d4 {[%emt 0:00:03]} Nf6 {[%emt 0:00:07]} 2. c4 {[%emt 0:00:06]} e6 {[%emt 0:00:06]} 3. Nc3 {[%emt 0:00:05]} d5 {[%emt 0:00:07]} 4. cxd5 {[%emt 0:00:06]} exd5 {[%emt 0:00:05]} 5. Bg5 {[%emt 0:00:05]} c6 {[%emt 0:00:14]} 6. e3 {[%emt 0:00:07]} h6 {[%emt 0:00:13]} 7. Bh4 {[%emt 0:00:09]} Be7 {[%emt 0:00:13]} 8. Qc2 {[%emt 0:01:37]} O-O {[%emt 0:00:18]} 9. Bd3 {[%emt 0:00:12]} Re8 {[%emt 0:00:25]} 10. Nge2 {[%emt 0:00:09]} a5 {[%emt 0:00:16]} 11. f3 {[%emt 0:03:55]} Na6 {[%emt 0:00:29]} 12. a3 {[%emt 0:01:24] Pariert Nb4.} c5 {[%emt 0:00:46] Die Stellung ist ausgeglichen.} 13. O-O {[%emt 0:03:08]} Nc7 {[%emt 0:01:44]} 14. Bf2 {[%emt 0:05:49]} (14. dxc5 $11 Bxc5 15. Nd1) 14... c4 $15 {[%emt 0:00:40]} 15. Bf5 {[%emt 0:00:42]} b5 {[%emt 0:00:27]} 16. Kh1 {[%emt 0:10:34]} ({Günstiger ist} 16. Bxc8 $15 Rxc8 (16... Qxc8 17. e4 $17) 17. e4) 16... Bxf5 {[%emt 0:05:29]} 17. Qxf5 {[%emt 0:00:24]} b4 {[%emt 0:00:18]} 18. Nb1 {[%emt 0:04:55]} Ne6 {[%emt 0:14:11]} 19. Nd2 {[%emt 0:06:40]} Rc8 $36 {[%emt 0:19:44][%mdl 2048] Läuft bei Schwarz.} 20. Qc2 {[%emt 0:01:31]} Ng5 {[%emt 0:08:46]} 21. Rfe1 {[%emt 0:09:43]} Bd6 {[%emt 0:04:28]} 22. Nf1 {[%emt 0:06:16]} Qb6 {[%emt 0:05:26]} 23. Nfg3 {[%emt 0:03:33]} g6 {[%emt 0:00:35]} 24. a4 {[%emt 0:09:24]} ({Vorzuziehen ist} 24. h4 $15 Ne6 25. axb4 axb4 26. h5) 24... h5 {[%emt 0:05:35] Schwarz hat aktiveres Spiel.} 25. Nf4 {[%emt 0:03:06]} b3 {[%emt 0:05:44]} 26. Qb1 {[%emt 0:01:16] [#]} (26. Qd1 $17) 26... c3 $1 $19 {[%emt 0:03:39]} 27. bxc3 {[%emt 0:03:30]} Rxc3 {[%emt 0:00:05][%cal Og5f3] ...Nxf3! wäre nun fies.} 28. Nd3 {[%emt 0:05:11]} Rc2 $2 {[%emt 0:04:16]} (28... Qa6 $19 29. Rd1 Qc4) 29. Ne2 $2 {[%emt 0:04:40] Weiss ist schwach auf den weissen Feldern. Verliert die Partie.} ({Weiss kommt nicht vorbei an} 29. Re2 $1 $15 Rec8 30. Nc5) 29... Ne6 {[%emt 0:01:15]} 30. Qd1 {[%emt 0:02:44]} Bb4 {[%emt 0:02:47]} 31. Rb1 {[%emt 0:03:21]} Bxe1 {[%emt 0:03:38]} 32. Qxc2 $2 {[%emt 0:01:08]} (32. Bxe1 Rec8 33. Bd2) 32... bxc2 {[%emt 0:00:12] Schwarz steht klar auf Gewinn.} 33. Rxb6 {[%emt 0:00:05] [#]} Bxf2 $1 {[%emt 0:00:25]} 34. Nxf2 {[%emt 0:00:05] [#]} Nxd4 $1 {[%emt 0:00:22][%mdl 512]} 35. Nc1 {[%emt 0:03:21]} (35. Rb2 Rxe3) 35... Rxe3 {[%emt 0:00:16]} 36. Nfd3 {[%emt 0:00:05] [#] Verhindert Re1+} Ne2 $1 {[%emt 0:01:01] Gewichteter Fehlerwert: Weiß=0.97/Schwarz=0.22 (präzise) .  Verlustzug:     	Weiß=1     	---        Gewinn verpasst:   	---       	Schwarz=1     Fehler:       	Weiß=5     	---        Ungenau:       	Weiß=2     	Schwarz=1     OK:         	Weiß=6     	Schwarz=8     Bester:       	---       	Schwarz=2} 0-1

[Event "Chess Ladies Graz 2024"]
[Site "Graz"]
[Date "2024.03.03"]
[Round "9.2"]
[White "Mkrtchian, Lilit"]
[Black "Froewis, Annika"]
[Result "1-0"]
[ECO "D36"]
[WhiteElo "2378"]
[BlackElo "2133"]
[Annotator "TA"]
[PlyCount "83"]
[EventDate "2024.02.25"]
[EventType "tourn"]
[EventCountry "AUT"]
[SourceTitle "playchess.com"]
[Source "ChessBase"]
[SourceQuality "1"]
[TimeControl "40/5400+30:1800+30"]

{[%evp 24,83,50,33,51,37,57,48,57,55,87,55,49,0,35,34,37,34,46,22,22,26,46,42,45,45,48,54,117,114,139,117,261,234,365,368,439,355,322,339,356,346,375,369,345,385,387,385,428,428,491,428,435,428,745,738,1075,918,29984,29985,29988,29989]} 1. d4 {[%emt 0:00:08]} Nf6 {[%emt 0:00:08]} 2. c4 {[%emt 0:00:07]} e6 {[%emt 0:00:08]} 3. Nc3 {[%emt 0:00:27]} d5 {[%emt 0:01:17]} 4. cxd5 {[%emt 0:00:55]} exd5 {[%emt 0:00:06]} 5. Bg5 {[%emt 0:00:03]} Be7 {[%emt 0:00:19]} 6. e3 {[%emt 0:00:08]} c6 {[%emt 0:00:13]} 7. Bd3 {[%emt 0:00:06]} Nbd7 {[%emt 0:00:21]} 8. h3 {[%emt 0:00:09]} O-O {[%emt 0:06:16]} 9. Qc2 {[%emt 0:00:25]} Re8 {[%emt 0:00:43]} 10. Nf3 {[%emt 0:03:01]} Nf8 {[%emt 0:10:35]} 11. O-O {[%emt 0:04:17]} Nh5 {[%emt 0:04:44]} 12. Bxe7 {[%emt 0:03:07]} Qxe7 {[%emt 0:00:15]} 13. Rab1 {[%emt 0:06:13]} a5 {[%emt 0:03:06]} 14. a3 {[%emt 0:02:34]} Nf6 {[%emt 0:06:19]} 15. b4 {[%emt 0:14:27]} axb4 {[%emt 0:00:32] White is slightly better.} 16. axb4 {[%emt 0:00:03]} N8d7 {[%emt 0:17:23]} 17. Rfc1 {[%emt 0:13:09]} b5 {[%emt 0:11:09]} 18. Nd2 {[%emt 0:10:30]} (18. Re1 $14 {might be stronger.}) 18... Bb7 {[%emt 0:04:31]} 19. Nb3 {[%emt 0:07:40]} Nb6 {[%emt 0:02:06]} 20. Nc5 {[%emt 0:01:32]} g6 {[%emt 0:15:53]} 21. e4 {[%emt 0:10:05]} dxe4 {[%emt 0:03:39]} 22. N3xe4 {[%emt 0:00:08]} Nxe4 {[%emt 0:01:05]} 23. Bxe4 {[%emt 0:00:17][%cal Bd3e4,Be4f3,Bf3c6,Bc6b5][%mdl 32]} Nc4 {[%emt 0:01:10]} 24. Ra1 {[%emt 0:01:45]} Rxa1 {[%emt 0:05:38]} 25. Rxa1 {[%emt 0:00:12]} Ba8 {[%emt 0:00:29]} (25... Qc7 $14) 26. Qc3 {[%emt 0:04:35] White is more active.} Rd8 {[%emt 0:02:34]} 27. Bf3 {[%emt 0:06:11]} Qf6 {[%emt 0:02:12] This costs Black the game.} (27... Re8 $16 {was necessary.} 28. Ra6 h6) 28. Ra6 {[%emt 0:03:47] aiming for Qa1.} Qd6 {[%emt 0:01:04]} (28... Re8 $142 29. Ne4 Qh8) 29. Qa1 $18 {[%emt 0:04:14]} Qb8 {[%emt 0:00:24]} 30. Nd7 {[%emt 0:00:55]} Qd6 {[%emt 0:00:32]} (30... Rxd7 $2 {loses.} 31. Rxa8 Rd8 32. Rxb8 $18) 31. Rxa8 {[%emt 0:02:03]} Qxd7 {[%emt 0:00:07] [#]} 32. Bxc6 {[%emt 0:00:07][%mdl 512]} Qc7 {[%emt 0:00:56]} (32... Qd6 33. Bxb5) 33. Bxb5 {[%emt 0:01:04]} Nd6 {[%emt 0:00:29]} 34. Rxd8+ {[%emt 0:01:21]} Qxd8 {[%emt 0:00:02][%mdl 4096] Endgame. KQB-KQN} 35. Bc6 {[%emt 0:00:09]} Qf6 {[%emt 0:00:58]} 36. b5 {[%emt 0:00:09][%cal Bb4b5,Bb5b6,Bb6b7][%mdl 32]} Nc4 {[%emt 0:00:33]} 37. Qc3 {[%emt 0:00:27]} Qe6 {[%emt 0:00:30]} 38. Bf3 {[%emt 0:01:09]} Nd6 {[%emt 0:00:32]} (38... Nb6 $142 39. Qc6 Kg7 40. Qxe6 fxe6) 39. b6 {[%emt 0:00:26]} Nb5 {[%emt 0:00:29]} 40. Qc5 {[%emt 0:01:14]} Qe1+ {[%emt 0:00:30]} 41. Kh2 {[%emt 0:30:05]} Nc3 {[%emt 0:02:10]} 42. b7 {[%emt 0:00:00] Weighted Error Value: White=0.15 (very precise) /Black=0.53.  Mistake:       	White=1     	Black=4      Inaccurate:     	White=1     	Black=3      OK:         	White=12    	Black=5      Brilliant:      	White=1     	---} 1-0

[Event "Chess Ladies Graz 2024"]
[Site "Graz"]
[Date "2024.03.03"]
[Round "9.3"]
[White "Trippold, Denise"]
[Black "Atalik, Ekaterina"]
[Result "0-1"]
[ECO "D41"]
[WhiteElo "2147"]
[BlackElo "2405"]
[Annotator "TA"]
[PlyCount "114"]
[EventDate "2024.02.25"]
[EventType "tourn"]
[EventCountry "AUT"]
[SourceTitle "playchess.com"]
[Source "ChessBase"]
[SourceQuality "1"]
[TimeControl "40/5400+30:1800+30"]

{[%evp 24,114,25,18,65,57,49,43,62,44,45,46,43,34,51,49,46,40,51,21,45,0,0,0,0,0,0,-8,0,-10,-10,-14,0,-23,-27,-24,-25,-33,-27,-48,-42,-52,0,-122,-106,-139,-149,-165,-175,-159,-161,-150,-154,-172,-125,-629,-684,-648,-633,-684,-676,-669,-507,-692,-647,-500,-500,-903,-888,-1395,-1335,-1403,-1330,-1067,-931,-1184,-2170,-2382,-2243,-8690,-10642,-6840,-5947,-4814,-2584,-12816,-5620,-6207,-5206,-5612,-2363,-29991,-29992]} 1. Nf3 {[%emt 0:00:07]} d5 {[%emt 0:00:27]} 2. e3 {[%emt 0:00:05]} Nf6 {[%emt 0:00:36]} 3. c4 {[%emt 0:00:21]} c5 {[%emt 0:01:06]} 4. cxd5 {[%emt 0:01:40]} Nxd5 {[%emt 0:00:20]} 5. Nc3 {[%emt 0:05:20]} Nxc3 {[%emt 0:06:04]} 6. bxc3 {[%emt 0:00:13]} e6 {[%emt 0:00:48]} 7. d4 {[%emt 0:06:29]} Nc6 {[%emt 0:00:18]} 8. Be2 {[%emt 0:01:00]} Be7 {[%emt 0:00:19]} 9. O-O {[%emt 0:00:23]} O-O {[%emt 0:00:05]} 10. e4 {[%emt 0:04:11]} Qc7 {[%emt 0:00:48]} 11. Be3 {[%emt 0:01:13]} Rd8 {[%emt 0:00:35]} 12. Qc2 {[%emt 0:03:21]} b6 {[%emt 0:02:47]} 13. Rfd1 {[%emt 1:12:37]} Bb7 {[%emt 0:01:11]} (13... Bd7 $11) 14. d5 $1 $14 {[%emt 0:00:00]} exd5 {[%emt 0:00:44]} 15. exd5 {[%emt 0:00:00]} Ne5 {[%emt 0:00:41]} 16. c4 {[%emt 0:00:00]} (16. Nxe5 {with more complications.} Qxe5 17. c4 Bd6 18. g3) 16... Nxf3+ {[%emt 0:02:46]} 17. Bxf3 {[%emt 0:00:00]} Bd6 {[%emt 0:00:19]} 18. g3 {[%emt 0:00:00]} Re8 {[%emt 0:00:10]} 19. Bd2 {[%emt 0:00:00]} Bc8 {[%emt 0:03:06]} 20. Bc3 {[%emt 0:00:00]} Bh3 {[%emt 0:04:07]} 21. a4 {[%emt 0:00:00]} Qd7 {[%emt 0:07:23]} 22. Qb2 {[%emt 0:00:00]} (22. Be2 $14) 22... Bg4 $11 {[%emt 0:08:09]} 23. Bxg4 $1 {[%emt 0:00:00]} Qxg4 {[%emt 0:00:06]} 24. Re1 {[%emt 0:00:00]} Qxc4 {[%emt 0:16:52]} 25. Bxg7 {[%emt 0:00:00]} Qb4 {[%emt 0:06:13]} (25... Rxe1+ 26. Rxe1 Qxa4 27. Bh6 $18) (25... Qxd5 {is interesting.} 26. a5 Qc6 27. Bh6 Bf8) 26. Bc3 {[%emt 0:04:49]} Qxb2 {[%emt 0:00:43]} 27. Bxb2 {[%emt 0:00:02]} a6 {[%emt 0:01:03]} 28. f4 {[%emt 0:02:00]} Rxe1+ {[%emt 0:02:54]} 29. Rxe1 {[%emt 0:00:01]} b5 {[%emt 0:00:29]} 30. Be5 {[%emt 0:00:25]} Bxe5 {[%emt 0:03:11]} 31. fxe5 {[%emt 0:00:02]} b4 {[%emt 0:01:28]} 32. Kf2 {[%emt 0:00:42]} c4 {[%emt 0:02:43]} (32... Kf8 $15) 33. Ke3 {[%emt 0:00:13]} (33. Re4 $1 $11 {was the only way to keep the balance.}) 33... c3 $17 {[%emt 0:00:59]} 34. Kd3 {[%emt 0:01:27] [#]} a5 $1 {[%emt 0:00:24]} 35. Kc4 {[%emt 0:00:38]} Rc8+ {[%emt 0:02:21]} 36. Kb3 {[%emt 0:00:01]} Kf8 {[%emt 0:00:23]} 37. g4 {[%emt 0:00:54]} Ke7 {[%emt 0:00:14]} 38. g5 {[%emt 0:00:15]} Rc5 {[%emt 0:01:51]} (38... Ke8 $19 39. h4 Rc5) 39. d6+ $2 {[%emt 0:00:49][%mdl 8192]} (39. Rd1 $17) 39... Kd7 $19 {[%emt 0:00:16]} 40. Kc2 {[%emt 0:00:10]} Rd5 {[%emt 0:01:37]} 41. Re2 {[%emt 0:07:26]} Rd4 {[%emt 0:02:23]} 42. Rf2 {[%emt 0:01:59]} Ke6 {[%emt 0:01:23]} 43. Re2 {[%emt 0:08:43]} Rf4 {[%emt 0:01:42]} 44. Kb3 {[%emt 0:01:05]} Rf1 {[%emt 0:02:38]} 45. h4 {[%emt 0:06:17]} (45. Kc2 $142) 45... Rb1+ $19 {[%emt 0:02:51]} 46. Ka2 {[%emt 0:01:24]} Rh1 {[%emt 0:01:06]} 47. Kb3 {[%emt 0:01:24]} Rxh4 {[%emt 0:01:33]} 48. Rf2 {[%emt 0:00:43]} Rd4 {[%emt 0:00:44]} 49. Rf6+ {[%emt 0:01:13]} Kxe5 {[%emt 0:00:17]} 50. Rxf7 {[%emt 0:00:09]} Rxd6 {[%emt 0:00:20]} 51. Rxh7 {[%emt 0:04:00]} Rc6 {[%emt 0:01:28]} 52. Rh1 {[%emt 0:00:53]} Kf5 {[%emt 0:00:50]} 53. Rg1 {[%emt 0:01:07]} Kg6 {[%emt 0:00:05]} 54. Rd1 {[%emt 0:00:56]} Kxg5 {[%emt 0:02:26]} (54... c2 $142 55. Rc1 Kxg5 (55... Rc3+ $2 56. Kb2 $19) 56. Rxc2 Rxc2 57. Kxc2 Kf4 58. Kd3 Kf3 59. Kd2 Ke4 60. Kc2 Kd4 61. Kb3 Kd3 62. Kb2 Kc4 63. Ka2 Kc3 64. Kb1 b3 (64... Kb3 {is a self mate.} 65. Kc1 Kxa4 66. Kc2 b3+ 67. Kc3 Ka3 68. Kd3 Kb4 69. Ke4 b2 70. Ke3 a4 71. Kf3 a3 72. Kg3 a2 73. Kh2 b1=Q 74. Kg2 a1=Q 75. Kg3 Qg1+ 76. Kf3 Qad4 77. Ke2 Qgf2#) 65. Kc1 Kb4 66. Kb2 Kxa4 67. Kc3 Ka3 68. Kd4 Kb4 (68... b2 69. Ke3 b1=Q 70. Kf4 Kb4 71. Kf3 a4 72. Kg4 Qe4+ 73. Kh3 a3 74. Kg3 a2 75. Kf2 Qf4+ 76. Ke2 a1=Q 77. Kd3 Qd1#) 69. Ke4 a4 (69... b2 70. Kf4 a4 71. Kg5 a3 72. Kf4 a2 73. Kg5 b1=Q 74. Kg4 a1=Q 75. Kg5 Qe5+ 76. Kh6 Qh1+ 77. Kg6 Qhh5#) 70. Kf5 b2 71. Kg5 a3 (71... b1=B {leads to mate.} 72. Kh6 a3 73. Kg5 a2 74. Kh5 a1=Q 75. Kg4 Qe5 76. Kf3 Bd3 77. Kg4 Be4 78. Kh4 Qf4+ 79. Kh5 Qg3 80. Kh6 Qg6#) 72. Kh6 a2 (72... b1=B 73. Kg5 a2 74. Kf4 a1=Q 75. Kg4 Qe5 76. Kf3 Bd3 77. Kg4 Be4 78. Kh4 Qf4+ 79. Kh5 Qg3 80. Kh6 Qg6#) (72... b1=Q 73. Kg7 a2 74. Kf6 a1=Q+ 75. Ke7 Qg7+ 76. Kd8 Qbh7 77. Ke8 Qhh8#) 73. Kg7 b1=Q (73... b1=R 74. Kf7 a1=Q 75. Ke6 Re1+ 76. Kf5 Qe5+ 77. Kg4 Rf1 78. Kh4 Rg1 79. Kh3 Qh8#) 74. Kf7 Qe4 (74... a1=B 75. Ke7 Qf5 76. Kd6 Be5+ 77. Kc6 Qe6+ 78. Kb7 Kb5 79. Ka8 Qa6#) 75. Kg8 a1=Q (75... a1=B 76. Kf7 Kc5 77. Kf8 Kd6 78. Kf7 Qh7+ 79. Kf8 Qg7+ 80. Ke8 Qg8#) 76. Kf8 Qh8+ 77. Kf7 Qee8#) 55. Rf1 {[%emt 0:00:31]} Rd6 {[%emt 0:02:25]} 56. Rf2 {[%emt 0:00:17]} Rd1 {[%emt 0:00:33]} (56... Rd2 $142 57. Rf1 Rb2+ 58. Kc4 c2 59. Rg1+ Kf4 60. Rf1+ Ke3) 57. Ka2 {[%emt 0:00:32]} Rd2+ {[%emt 0:00:39]} 0-1

[Event "Chess Ladies Graz 2024"]
[Site "Graz"]
[Date "2024.03.03"]
[Round "9.4"]
[White "Polterauer, Chiara"]
[Black "Brunello, Marina"]
[Result "0-1"]
[ECO "B12"]
[WhiteElo "2189"]
[BlackElo "2345"]
[Annotator "TA"]
[PlyCount "82"]
[EventDate "2024.02.25"]
[EventType "tourn"]
[EventCountry "AUT"]
[SourceTitle "playchess.com"]
[Source "ChessBase"]
[SourceQuality "1"]
[TimeControl "40/5400+30:1800+30"]

{[%evp 9,82,-29,-36,-55,-65,-95,0,0,-12,-8,-9,0,-4,4,-18,-25,0,-6,0,0,0,-23,-28,-28,-26,-22,-29,-25,-16,-36,0,0,0,0,0,0,0,0,0,0,0,0,0,0,0,0,0,-8,-8,-8,-57,-277,-281,-360,-357,-418,-418,-428,-428,-428,-420,-645,-600,-673,-667,-828,-922,-906,-900,-1204,-1210,-1898,-1802,-1370,-1356]} 1. e4 {[%emt 0:00:03]} c6 {[%emt 0:00:39]} 2. d4 {[%emt 0:00:17]} d5 {[%emt 0:00:04]} 3. e5 {[%emt 0:00:21]} Bf5 {[%emt 0:00:05]} 4. h4 {[%emt 0:00:28]} h5 {[%emt 0:00:04]} 5. Bg5 {[%emt 0:01:56]} Qb6 {[%emt 0:03:47]} 6. Bd3 {[%emt 0:00:13]} Bxd3 {[%emt 0:00:38]} 7. Qxd3 {[%emt 0:00:05][%cal Oe5e6]} e6 {[%emt 0:08:04]} (7... Qxb2 $17 8. Qb3 Qxb3 (8... Qxa1 $2 9. Qxb7 Kd8 10. Nf3 $18) 9. axb3 e6) 8. Nd2 $11 {[%emt 0:01:02] The position is equal.} c5 {[%emt 0:03:58]} 9. c4 {[%emt 0:00:23]} Qxb2 {[%emt 0:03:18]} 10. Rb1 {[%emt 0:01:02]} Qxd4 {[%emt 0:00:08]} 11. Qxd4 {[%emt 0:00:05]} cxd4 {[%emt 0:00:03]} 12. Ngf3 {[%emt 0:00:47]} Nd7 {[%emt 0:06:27]} 13. O-O {[%emt 0:08:19]} (13. Rxb7 f6 14. Nxd4 Nc5 $15) 13... Ne7 {[%emt 0:04:19]} 14. Rxb7 {[%emt 0:15:06]} f6 {[%emt 0:05:49]} 15. exf6 {[%emt 0:07:44]} (15. Nxd4 $5 fxg5 16. Nxe6 $11) 15... gxf6 {[%emt 0:00:11]} 16. Nxd4 $1 {[%emt 0:00:17]} fxg5 {[%emt 0:06:37]} 17. Nxe6 {[%emt 0:01:08] [#] Hoping for Nc7+.} Rb8 {[%emt 0:00:23]} 18. Rxa7 {[%emt 0:08:38]} Nc8 {[%emt 0:05:56]} 19. Ra6 {[%emt 0:00:39]} (19. Rc7 $2 Bd6 20. Ng7+ Kd8 $19) 19... Rb2 {[%emt 0:05:21]} 20. Nf3 {[%emt 0:03:47]} g4 {[%emt 0:01:15]} 21. Nfg5 {[%emt 0:01:49] Nc7+ would now be deadly.} dxc4 {[%emt 0:01:06] ...Ndb6 is the strong threat.} 22. Rc6 {[%emt 0:13:49]} (22. Ra8 $2 Ndb6 23. Rb8 c3 $19 (23... Rxa2 24. Rd1 $15)) 22... Ndb6 {[%emt 0:00:49]} 23. Rc7 $1 {[%emt 0:07:32] [#] Strongly threatening Rd1.} Be7 {[%emt 0:09:55][%cal Oh8g8]} ({Don't play} 23... Rxa2 $6 24. Nxf8 Ra7 (24... Kxf8 $2 {too greedy.} 25. Ne6+ Ke8 26. Rd1 $18) (24... Rxf8 $2 {is the wrong capture.} 25. Re1+ Kd8 26. Ne6+ Ke8 27. Rd1 $18) 25. Rxa7 Nxa7 26. Ng6 $16) 24. a4 {[%emt 0:02:35]} Ra2 {[%emt 0:00:33][%cal Oh8g8]} 25. Re1 {[%emt 0:01:27]} Rxa4 {[%emt 0:12:57]} 26. Ng7+ {[%emt 0:01:57]} Kf8 {[%emt 0:00:04]} 27. Nf5 {[%emt 0:00:22]} Bxg5 {[%emt 0:02:16]} 28. hxg5 {[%emt 0:00:04] Intending g6 and mate.} (28. Re8+ $5 Kxe8 29. Ng7+ Kf8 30. Ne6+ Ke8 31. Ng7+ Kf8 32. Ne6+ Ke8 33. Ng7+ $11) 28... Ra7 $1 {[%emt 0:07:33]} 29. Rc6 {[%emt 0:02:43]} Rf7 {[%emt 0:01:07]} 30. Ne3 {[%emt 0:00:25] Now White is beyond hope.} ({White should try} 30. Re5 $15) 30... Kg7 $19 {[%emt 0:00:31]} 31. Rc1 {[%emt 0:03:47]} Rd8 {[%emt 0:02:27]} 32. Rc2 {[%emt 0:02:38]} Rd6 {[%emt 0:00:53]} 33. Rc5 {[%emt 0:00:16]} Kg6 {[%emt 0:00:12][%cal Og4g3] Repels Nf5} 34. g3 {[%emt 0:07:31]} Ne7 {[%emt 0:01:02] aiming for ...Nf5.} 35. Ng2 {[%emt 0:03:01]} (35. Nxc4 $142 Nxc4 36. R5xc4) 35... Ned5 {[%emt 0:02:03] Black is clearly winning.} 36. Re2 {[%emt 0:01:22]} Kxg5 {[%emt 0:02:44]} 37. Nf4 {[%emt 0:00:08]} Rxf4 {[%emt 0:03:25]} 38. gxf4+ {[%emt 0:01:13]} Kxf4 {[%emt 0:00:04]} 39. Ra5 {[%emt 0:00:24]} Rc6 {[%emt 0:00:42] White must now prevent ...c3.} 40. Ra7 {[%emt 0:00:53]} c3 {[%emt 0:00:19] Threatens to win with ...c2.} 41. Rf7+ {[%emt 0:30:56]} Nf6 {[%emt 0:04:08] Weighted Error Value: White=0.58/Black=0.07 (flawless) .  Loses game:     	White=1     	---        Mistake:       	White=1     	Black=1      Inaccurate:     	White=1     	Black=1      OK:         	White=12    	Black=15     Best:        	---       	Black=3      Strong:       	White=2     	Black=1} 0-1

[Event "Chess Ladies Graz 2024"]
[Site "Graz"]
[Date "2024.03.03"]
[Round "9.5"]
[White "Bodnaruk, Anastasia"]
[Black "Mayrhuber, Nikola"]
[Result "1-0"]
[ECO "B90"]
[WhiteElo "2340"]
[BlackElo "1980"]
[Annotator "RC"]
[PlyCount "109"]
[EventDate "2024.02.25"]
[EventType "tourn"]
[EventCountry "AUT"]
[SourceTitle "playchess.com"]
[Source "ChessBase"]
[SourceQuality "1"]
[TimeControl "40/5400+30:1800+30"]

1. e4 {[%emt 0:00:02]} c5 {[%emt 0:00:03]} 2. Nf3 {[%emt 0:00:06]} d6 {[%emt 0:00:05]} 3. d4 {[%emt 0:00:04]} cxd4 {[%emt 0:00:04]} 4. Nxd4 {[%emt 0:00:03]} Nf6 {[%emt 0:00:06]} 5. Nc3 {[%emt 0:00:04]} a6 {[%emt 0:00:03]} 6. Nb3 {[%emt 0:00:14]} e6 {[%emt 0:00:06]} 7. g4 {[%emt 0:01:25]} b5 {[%emt 0:00:36]} 8. g5 {[%emt 0:00:57]} b4 {[%emt 0:13:51]} 9. Nd5 {[%emt 0:01:31]} Nxe4 {[%emt 0:07:58]} 10. Be3 {[%emt 0:01:03]} Nc5 {[%emt 0:02:45]} 11. Nxb4 {[%emt 0:01:02]} Bb7 {[%emt 0:02:03]} 12. Rg1 {[%emt 0:00:43]} Nbd7 {[%emt 0:04:23]} 13. Nd3 {[%emt 0:03:18]} Nxd3+ {[%emt 0:06:21]} 14. Bxd3 {[%emt 0:00:45]} Ne5 {[%emt 0:00:28]} 15. Be2 {[%emt 0:00:10]} Rc8 {[%emt 0:05:24]} 16. f4 {[%emt 0:16:11]} Nc4 {[%emt 0:01:58]} 17. Bxc4 {[%emt 0:00:49]} Rxc4 {[%emt 0:00:02]} 18. Bd4 {[%emt 0:00:52]} Qc7 {[%emt 0:05:51]} 19. c3 {[%emt 0:04:18]} h6 {[%emt 0:11:45]} 20. Qe2 {[%emt 0:09:50]} hxg5 {[%emt 0:04:00]} 21. Rxg5 {[%emt 0:00:50]} f6 {[%emt 0:08:59]} 22. Rg4 {[%emt 0:08:47]} Kf7 {[%emt 0:07:19]} 23. O-O-O {[%emt 0:02:37]} a5 {[%emt 0:03:24]} 24. Kb1 {[%emt 0:16:55]} a4 {[%emt 0:02:37]} 25. Nd2 {[%emt 0:01:17]} Rc6 {[%emt 0:01:28]} 26. Rdg1 {[%emt 0:03:58]} e5 {[%emt 0:02:00]} 27. Qg2 {[%emt 0:04:15]} Ke8 {[%emt 0:02:57]} 28. Qe2 {[%emt 0:03:10]} Ba6 {[%emt 0:03:01]} 29. c4 {[%emt 0:02:07]} Rxc4 {[%emt 0:02:53]} 30. Nxc4 {[%emt 0:01:15]} Qxc4 {[%emt 0:00:01]} 31. Qxc4 {[%emt 0:00:28]} Bxc4 {[%emt 0:00:01]} 32. fxe5 {[%emt 0:04:16]} dxe5 {[%emt 0:00:28]} 33. Bc3 {[%emt 0:01:04]} Bd3+ {[%emt 0:00:10]} 34. Kc1 {[%emt 0:02:02]} Rxh2 {[%emt 0:00:58]} 35. Rxa4 {[%emt 0:03:43]} Bc5 {[%emt 0:00:46]} 36. Rg3 {[%emt 0:05:33]} e4 {[%emt 0:00:22]} 37. Bd4 {[%emt 0:00:07]} Rc2+ {[%emt 0:02:41]} 38. Kd1 {[%emt 0:00:05]} g5 {[%emt 0:00:51]} 39. Bxc5 {[%emt 0:01:57]} Rxc5 {[%emt 0:00:02]} 40. Ra7 {[%emt 0:00:19]} Rd5 {[%emt 0:00:27]} 41. a4 {[%emt 0:07:44]} Bb5+ {[%emt 0:09:14]} 42. Ke1 {[%emt 0:01:39]} Bd7 {[%emt 0:01:17]} 43. b4 {[%emt 0:00:35]} Kd8 {[%emt 0:03:29]} 44. b5 {[%emt 0:03:04]} Rd4 {[%emt 0:12:13]} 45. Rb3 {[%emt 0:03:53]} Kc8 {[%emt 0:01:24]} 46. b6 {[%emt 0:01:34]} Kb8 {[%emt 0:01:43]} 47. a5 {[%emt 0:00:28]} Be6 {[%emt 0:02:21]} 48. Rb2 {[%emt 0:01:39]} Rd8 {[%emt 0:02:21]} 49. a6 {[%emt 0:01:33]} Bc4 {[%emt 0:00:58]} 50. Rb7+ {[%emt 0:00:06]} Ka8 {[%emt 0:00:04]} 51. Rc7 {[%emt 0:00:26]} Bxa6 {[%emt 0:00:10]} 52. Ra7+ {[%emt 0:00:41]} Kb8 {[%emt 0:00:03]} 53. Rxa6 {[%emt 0:00:02]} Kb7 {[%emt 0:01:37]} 54. Ra7+ {[%emt 0:00:26]} Kc6 {[%emt 0:00:23]} 55. Rc7+ {[%emt 0:00:05]} 1-0